lending/lending_fUSD_20260411
["ID","MTS","AMOUNT","RATE_DAILY","PERIOD"]
[420268939,1775890248938,-500.0,0.00010382,2]
[420268940,1775890248961,-271.81581048,0.0001044,2]
[420268941,1775890248973,-154.0,0.0001045,3]
[420268942,1775890248995,-1700.0,0.00010463,2]
[420268943,1775890249025,-500.0,0.00010472,2]
[420268944,1775890249035,-500.0,0.00010472,2]
[420268945,1775890249048,-289.92,0.00010472,2]
[420268946,1775890249067,-985.933897,0.00010472,2]
[420268947,1775890249078,-985.933897,0.00010472,2]
[420268948,1775890249090,-985.933897,0.00010472,2]
[420268949,1775890249114,-985.933897,0.00010472,2]
[420268950,1775890249123,-171.85,0.00010475,2]
[420268951,1775890249134,-1139.39729918,0.00010482,2]
[420268952,1775890249155,-151.0,0.00010483,2]
[420268953,1775890249166,-151.0,0.00010483,2]
[420268954,1775890249182,-151.0,0.00010483,2]
[420268955,1775890249204,-500.0,0.00010525,2]
[420268956,1775890249214,-10000.0,0.0001054,2]
[420268957,1775890249508,-233.62402148,0.00010542,4]
[420268958,1775890249541,-166.87430105,0.00010542,4]
[420268959,1775890249550,-200.0,0.00010548,2]
[420268960,1775890249590,-863.691404,0.00010548,2]
[420268961,1775890249610,-863.691404,0.00010548,2]
[420268962,1775890249620,-863.691404,0.00010548,2]
[420268963,1775890249632,-863.691404,0.00010548,2]
[420268964,1775890249642,-1680.0,0.00010566,2]
[420268965,1775890249662,-463.0,0.00010571,2]
[420268966,1775890249673,-1528.0,0.00010571,2]
[420268967,1775890249683,-1528.0,0.00010571,2]
[420268968,1775890249697,-1550.49500782,0.00010571,2]
[420268969,1775890249712,-151.0,0.00010571,2]
[420268970,1775890249722,-193.0,0.00010573,2]
[420268971,1775890249735,-5000.0,0.00010573,2]
[420268972,1775890249761,-2000.0,0.000106,2]
[420268973,1775890249772,-3315.202,0.00010602,2]
[420268974,1775890249782,-197.024,0.00010602,2]
[420268975,1775890249794,-500.0,0.00010605,2]
[420268976,1775890249807,-1082.39,0.00010626,2]
[420268977,1775890249820,-151.0,0.00010637,2]
[420268978,1775890249829,-151.0,0.00010637,2]
[420268979,1775890249848,-151.0,0.00010637,2]
[420268980,1775890249859,-238202.80937445,0.0001064,2]
[420268981,1775890249868,-151.0,0.0001064,2]
[420268982,1775890249885,-863.691404,0.0001064,2]
[420268983,1775890249899,-863.691404,0.0001064,2]
[420268984,1775890249919,-863.691404,0.0001064,2]
[420268985,1775890249929,-863.691404,0.0001064,2]
[420268986,1775890249938,-151.0,0.0001064,2]
[420268987,1775890249958,-985.933897,0.0001064,2]
[420268988,1775890249972,-985.933897,0.0001064,2]
[420268989,1775890250011,-985.933897,0.0001064,2]
[420268990,1775890250026,-985.933897,0.0001064,2]
[420268991,1775890250040,-255.0,0.00010669,2]
[420268992,1775890250058,-500.0,0.00010673,2]
[420268993,1775890250071,-501.06339749,0.00010673,2]
[420268994,1775890250084,-500.0,0.00010673,2]
[420268995,1775890250105,-500.0,0.00010673,2]
[420268996,1775890250115,-166.24061077,0.00010673,2]
[420268997,1775890250128,-500.0,0.00010673,2]
[420268998,1775890250142,-500.0,0.00010673,2]
[420268999,1775890250159,-159.96671118,0.00010673,2]
[420269000,1775890250169,-500.3132226,0.00010673,2]
[420269001,1775890250178,-500.0,0.00010673,2]
[420269002,1775890250198,-500.0,0.00010673,2]
[420269003,1775890250208,-305.0086574,0.00010673,2]
[420269004,1775890250225,-500.0,0.00010673,2]
[420269005,1775890250235,-500.0,0.00010673,2]
[420269006,1775890250245,-500.0,0.00010673,2]
[420269007,1775890250259,-500.0,0.00010673,2]
[420269008,1775890250269,-500.0,0.00010673,2]
[420269009,1775890250279,-164.511723,0.00010673,2]
[420269010,1775890250288,-500.0,0.00010673,2]
[420269011,1775890250311,-282.04794022,0.00010673,2]
[420269012,1775890250320,-166.66,0.00010675,2]
[420269013,1775890250330,-1985.0,0.00010687,5]
[420269014,1775890250343,-166.68,0.00010687,2]
[420269015,1775890250355,-151.0,0.00010697,2]
[420269016,1775890250378,-5969.57197646,0.000107,2]
[420269017,1775890250389,-863.691404,0.000107,2]
[420269018,1775890250404,-863.691404,0.000107,2]
[420269019,1775890250414,-863.691404,0.000107,2]
[420269020,1775890250432,-863.691405,0.000107,2]
[420269021,1775890250444,-313.0,0.000107,2]
[420269022,1775890250454,-612.0,0.000107,2]
[420269023,1775890250474,-187.78006525,0.00010728,2]
[420269024,1775890250485,-2700.0,0.00010737,2]
[420269025,1775890250494,-159.83,0.00010756,2]
[420269026,1775890250520,-251.56,0.00010757,2]
[420269027,1775890250530,-1010.26603881,0.00010776,4]
[420269028,1775890250541,-721.61859915,0.00010776,4]
[420269029,1775890250554,-155.0,0.00010779,2]
[420269030,1775890250568,-500.0,0.00010799,2]
[420269031,1775890250578,-985.933897,0.000108,2]
[420269032,1775890250588,-985.933897,0.000108,2]
[420269033,1775890250613,-985.933897,0.000108,2]
[420269034,1775890250624,-985.933903,0.000108,2]
[420269035,1775890250637,-200.0,0.00010807,2]
[420269036,1775890250649,-799.54513345,0.00010807,2]
[420269037,1775890250662,-520.31444269,0.00010817,2]
[420269038,1775890250672,-1699.28695522,0.00010851,2]
[420269039,1775890250682,-1073.0,0.00010884,3]
[420269040,1775890250699,-1082.39,0.000109,2]
[420269041,1775890250715,-500.0,0.000109,3]
[420269042,1775890250724,-430.08000003,0.00010958,2]
[420269043,1775890250749,-500.0,0.00010958,2]
[420269044,1775890250758,-200.0,0.00010959,2]
[420269045,1775890250769,-500.0,0.00010959,2]
[420269046,1775890250804,-150.0,0.00010959,2]
[420269047,1775890250815,-1429.25,0.00010959,2]
[420269048,1775890250836,-203.577518,0.00010959,2]
[420269049,1775890250854,-203.577518,0.00010959,2]
[420269050,1775890250868,-203.577518,0.00010959,2]
[420269051,1775890250893,-203.577518,0.00010959,2]
[420269052,1775890250902,-203.577518,0.00010959,2]
[420269053,1775890250933,-203.577518,0.00010959,2]
[420269054,1775890250942,-203.577518,0.00010959,2]
[420269055,1775890250952,-203.577518,0.00010959,2]
[420269056,1775890250972,-203.577518,0.00010959,2]
[420269057,1775890250982,-203.577518,0.00010959,2]
[420269058,1775890250992,-203.577518,0.00010959,2]
[420269059,1775890251006,-203.577518,0.00010959,2]
[420269060,1775890251026,-203.577518,0.00010959,2]
[420269061,1775890251044,-203.577518,0.00010959,2]
[420269062,1775890251053,-203.577518,0.00010959,2]
[420269063,1775890251066,-203.577518,0.00010959,2]
[420269064,1775890251075,-203.577518,0.00010959,2]
[420269065,1775890251094,-203.577518,0.00010959,2]
[420269066,1775890251112,-203.577518,0.00010959,2]
[420269067,1775890251124,-203.577511,0.00010959,2]
[420269068,1775890251142,-150.0,0.00010959,2]
[420269069,1775890251154,-152.962721,0.00010959,2]
[420269070,1775890251188,-350.0,0.00010982,2]
[420269071,1775890251199,-1000.0,0.00011,2]
[420269072,1775890251228,-2000.0,0.00011,2]
[420269073,1775890251237,-500.0,0.00011068,2]
[420269074,1775890251247,-500.0,0.00011068,2]
[420269075,1775890251280,-500.0,0.00011068,2]
[420269076,1775890251289,-579.0,0.00011068,2]
[420269077,1775890251322,-500.0,0.00011068,2]
[420269078,1775890251331,-500.0,0.00011068,2]
[420269079,1775890251353,-500.0,0.00011068,2]
[420269080,1775890251370,-500.0,0.00011068,2]
[420269081,1775890251383,-500.0,0.00011071,2]
[420269082,1775890251392,-500.0,0.00011071,3]
[420269083,1775890251408,-500.0,0.00011071,4]
[420269084,1775890251421,-500.0,0.00011071,5]
[420269085,1775890251431,-500.0,0.00011071,6]
[420269086,1775890251445,-500.0,0.00011071,7]
[420269087,1775890251460,-500.0,0.00011073,2]
[420269088,1775890251470,-166.66,0.00011082,2]
[420269089,1775890251480,-151.0,0.00011096,2]
[420269090,1775890251505,-151.0,0.00011096,2]
[420269091,1775890251514,-200.0,0.00011096,2]
[420269092,1775890251524,-300.0,0.00011098,2]
[420269093,1775890251540,-300.0,0.00011098,2]
[420269094,1775890251550,-304.65357867,0.00011098,2]
[420269095,1775890251559,-300.0,0.00011098,2]
[420269096,1775890251575,-300.0,0.00011098,2]
[420269097,1775890251584,-300.0,0.00011098,2]
[420269098,1775890251594,-300.0,0.00011098,2]
[420269099,1775890251606,-300.0,0.00011098,2]
[420269100,1775890251617,-300.0,0.00011098,2]
[420269101,1775890251626,-300.0,0.00011098,2]
[420269102,1775890251636,-36873.44485489,0.00011099,2]
[420269103,1775890251645,-36873.44485485,0.00011099,2]
[420269104,1775890251656,-17567.67334194,0.00011099,2]
[420269105,1775890251665,-17567.67334194,0.00011099,2]
[420269106,1775890251675,-17567.67334194,0.00011099,2]
[420269107,1775890251684,-1256.36792097,0.000111,2]
[420269108,1775890251697,-5533.0,0.000111,5]
[420269109,1775890251707,-1600.0,0.00011103,2]
[420269110,1775890251716,-1082.39,0.00011174,2]
[420269111,1775890251727,-376.5,0.00011179,2]
[420269112,1775890251736,-23162.10933983,0.00011197,2]
[420269113,1775890251749,-631.959,0.00011221,2]
[420269114,1775890251759,-1047.0,0.00011221,2]
[420269115,1775890251772,-1000.0,0.00011221,2]
[420269116,1775890251784,-1000.0,0.00011221,2]
[420269117,1775890251795,-1000.0,0.00011221,2]
[420269118,1775890251805,-1000.0,0.00011221,2]
[420269119,1775890251825,-1000.0,0.00011221,2]
[420269120,1775890251838,-1000.0,0.00011221,2]
[420269121,1775890251851,-341.68346769,0.00011221,2]
[420269122,1775890251862,-1000.0,0.00011221,2]
[420269123,1775890251875,-1000.0,0.00011221,2]
[420269124,1775890251892,-1000.0,0.00011221,2]
[420269125,1775890251904,-500.0,0.00011221,2]
[420269126,1775890251916,-1000.0,0.00011221,2]
[420269127,1775890251932,-1000.0,0.00011221,2]
[420269128,1775890251943,-500.0,0.00011221,2]
[420269129,1775890251952,-355.93352549,0.00011221,2]
[420269130,1775890251964,-1347.0,0.00011222,2]
[420269131,1775890251974,-3525.0,0.00011231,2]
[420269132,1775890251983,-1264.0,0.00011231,2]
[420269133,1775890251992,-926.0,0.00011231,2]
[420269134,1775890252001,-6024.0,0.00011231,2]
[420269135,1775890252010,-3774.0,0.00011231,2]
[420269136,1775890252020,-416.0,0.00011231,2]
[420269137,1775890252029,-154.0,0.00011275,3]
[420269138,1775890252039,-194.72792766,0.00011276,2]
[420269139,1775890252049,-184.04012456,0.00011317,2]
[420269140,1775890252059,-474.19721144,0.00011347,2]
[420269141,1775890252068,-500.0,0.00011355,2]
[420269142,1775890252077,-500.0,0.00011355,2]
[420269143,1775890252088,-500.0,0.00011355,2]
[420269144,1775890252097,-200.0,0.00011355,2]
[420269145,1775890252107,-377.50504715,0.00011355,2]
[420269146,1775890252116,-174.7148,0.000114,2]
[420269147,1775890252125,-156.0,0.0001144,3]
[420269148,1775890252139,-1082.39,0.00011448,2]
[420269149,1775890252148,-300.0,0.00011456,2]
[420269150,1775890252158,-300.0,0.00011456,2]
[420269151,1775890252168,-166.66,0.00011489,2]
[420269152,1775890252181,-1081.06,0.00011507,2]
[420269153,1775890252192,-251.56,0.00011514,2]
[420269154,1775890252203,-1073.0,0.00011579,3]
[420269155,1775890252216,-152.0,0.00011611,7]
[420269156,1775890252227,-152.0,0.00011611,7]
[420269157,1775890252237,-300.0,0.00011612,2]
[420269158,1775890252246,-300.0,0.00011612,2]
[420269159,1775890252260,-300.0,0.00011612,2]
[420269160,1775890252278,-300.0,0.00011612,2]
[420269161,1775890252288,-36600.51649796,0.00011613,2]
[420269162,1775890253611,-51.49292226,0.00011613,2]
[420269163,1775890253627,-221.43543463,0.00011613,2]
[420269164,1775890253641,-152.0,0.00011614,7]
[420269165,1775890253651,-152.0,0.00011614,7]
[420269166,1775890253667,-152.0,0.00011614,7]
[420269167,1775890253680,-152.0,0.00011614,7]
[420269168,1775890253694,-138.79400628,0.00011614,7]
[420269169,1775890253929,-13.20599372,0.00011614,7]
[420269170,1775890253939,-152.0,0.00011614,7]
[420269171,1775890253958,-152.0,0.00011614,7]
[420269172,1775890253967,-500.0,0.00011614,2]
[420269173,1775890253981,-183.71972472,0.00011614,2]
[420269174,1775890254376,-316.28027528,0.00011614,2]
[420269175,1775890254388,-500.0,0.00011614,2]
[420269176,1775890254398,-500.0,0.00011614,2]
[420269177,1775890254415,-580.0,0.00011614,2]
[420269178,1775890254424,-152.0,0.00011618,7]
[420269179,1775890254441,-152.0,0.00011618,7]
[420269180,1775890254452,-152.0,0.0001162,7]
[420269181,1775890254462,-152.0,0.0001162,7]
[420269182,1775890254471,-2351.0,0.00011623,2]
[420269183,1775890254488,-200.0,0.00011644,2]
[420269184,1775890254498,-6548.25303072,0.00011667,2]
[420269185,1775890254615,-8256.93446698,0.00011667,2]
[420269186,1775890268924,500.0,9.85e-05,2]
[420269187,1775890269701,500.0,9.85e-05,2]
[420269188,1775890270444,500.0,9.85e-05,2]
[420269189,1775890271200,500.0,9.85e-05,2]
[420269190,1775890271967,500.0,9.85e-05,2]
[420269191,1775890277130,1600.0,9.28e-05,2]
[420269192,1775890279008,2700.0,9.554e-05,2]
[420269193,1775890279143,3200.01,9.639e-05,2]
[420269194,1775890279186,1651.29698727,9.639e-05,2]
[420269195,1775890294464,8348.71301273,9.6e-05,2]
[420269196,1775890294498,10000.01,9.6e-05,2]
[420269197,1775890294535,10000.01,9.6e-05,2]
[420269198,1775890294569,10000.01,9.6e-05,2]
[420269199,1775890339681,5000.01,7.945e-05,2]
[420269200,1775890339728,5000.01,7.945e-05,2]
[420269201,1775890339775,5000.01,7.945e-05,2]
[420269202,1775890339827,5754.105804,7.945e-05,2]
[420269215,1775890711610,577.28550697,8e-05,2]
[420269217,1775890747925,978.0,7.945e-05,3]
[420269218,1775890748158,978.0,8.685e-05,3]
[420269219,1775890748438,978.0,9.424e-05,3]
[420269222,1775890755359,166.0,7.945e-05,3]
[420269225,1775890772642,-150.0,9.5e-05,2]
[420269234,1775890787748,-300.0,9.505e-05,2]
[420269235,1775890787783,-150.0,9.505e-05,2]
[420269236,1775890787820,-300.0,9.505e-05,2]
[420269237,1775890789400,287.0,9.505e-05,2]
[420269238,1775890790017,7007.0,9.5e-05,2]
[420269239,1775890801154,1200.0,9.505e-05,2]
[420269240,1775890802382,6.01,9.505e-05,2]
[420269241,1775890802414,238.99,9.505e-05,2]
[420269242,1775890802618,500.0,9.5e-05,2]
[420269243,1775890802955,150.0,9.505e-05,2]
[420269244,1775890803003,464.64024967,9.5e-05,2]
[420269245,1775890812008,154.0,7.945e-05,3]
[420269246,1775890812333,154.0,9.116e-05,3]
[420269247,1775890814746,926.0,7.945e-05,3]
[420269248,1775890814980,926.0,8.685e-05,3]
[420269249,1775890815381,926.0,9.424e-05,3]
[420269250,1775890815804,157.0,7.945e-05,3]
[420269251,1775890817929,200.0,9.1e-05,2]
[420269252,1775890819344,150.0,9.5e-05,2]
[420269260,1775890861176,300.0,9.505e-05,2]
[420269263,1775890865618,787.0,7.945e-05,3]
[420269264,1775890866243,787.0,8.685e-05,3]
[420269265,1775890866297,787.0,9.424e-05,3]
[420269267,1775890897783,1999.68428731,0.00013,60]
[420269268,1775890898217,0.31571269,0.00013,60]
[420269275,1775890927599,669.0,7.945e-05,3]
[420269276,1775890927805,669.0,8.685e-05,3]
[420269277,1775890928065,669.0,9.424e-05,3]
[420269278,1775890939370,-250.0,9.506e-05,2]
[420269279,1775890955153,-500.0,9.506e-05,2]
[420269280,1775890955203,-240.32804552,9.506e-05,2]
[420269281,1775890955278,-228.07711645,9.506e-05,2]
[420269282,1775890955321,-500.0,9.506e-05,2]
[420269283,1775890955373,-500.0,9.506e-05,2]
[420269284,1775890955439,-500.0,9.506e-05,2]
[420269285,1775890955484,-224.67505997,9.506e-05,2]
[420269286,1775890955536,-500.0,9.506e-05,2]
[420269287,1775890955575,-500.0,9.506e-05,2]
[420269288,1775890955624,-166.03626919,9.506e-05,2]
[420269289,1775890955667,-500.0,9.506e-05,2]
[420269290,1775890955714,-556.91672866,9.506e-05,2]
[420269291,1775890956041,-556.91672866,9.506e-05,2]
[420269292,1775890956117,-556.91672866,9.506e-05,2]
[420269293,1775890956168,-556.91672866,9.506e-05,2]
[420269294,1775890956209,-556.91672866,9.506e-05,2]
[420269295,1775890956252,-556.91672866,9.506e-05,2]
[420269296,1775890956296,-556.91672866,9.506e-05,2]
[420269297,1775890956349,-556.91672866,9.506e-05,2]
[420269298,1775890956400,-556.91672866,9.506e-05,2]
[420269299,1775890956473,-532.42561278,9.506e-05,2]
[420269300,1775890956684,-24.49111588,9.506e-05,2]
[420269301,1775890956737,-556.91672866,9.506e-05,2]
[420269302,1775890956788,-556.91672866,9.506e-05,2]
[420269303,1775890956829,-556.91672866,9.506e-05,2]
[420269304,1775890956867,-556.91672866,9.506e-05,2]
[420269305,1775890956907,-556.91672866,9.506e-05,2]
[420269306,1775890956949,-556.91672866,9.506e-05,2]
[420269307,1775890956990,-556.91672866,9.506e-05,2]
[420269308,1775890957046,-556.91672866,9.506e-05,2]
[420269309,1775890957101,-483.44338102,9.506e-05,2]
[420269310,1775890957375,-73.47334764,9.506e-05,2]
[420269311,1775890957421,-556.91672866,9.506e-05,2]
[420269312,1775890957465,-556.91672866,9.506e-05,2]
[420269313,1775890957508,-556.91672866,9.506e-05,2]
[420269314,1775890957550,-556.91672866,9.506e-05,2]
[420269315,1775890957595,-556.91672866,9.506e-05,2]
[420269316,1775890957639,-556.91672866,9.506e-05,2]
[420269317,1775890957677,-556.91672866,9.506e-05,2]
[420269318,1775890957719,-556.91672866,9.506e-05,2]
[420269319,1775890957763,-385.4789175,9.506e-05,2]
[420269320,1775890957996,-171.43781116,9.506e-05,2]
[420269321,1775890958056,-556.91672866,9.506e-05,2]
[420269322,1775890958116,-556.91672866,9.506e-05,2]
[420269323,1775890958194,-556.91672866,9.506e-05,2]
[420269324,1775890958263,-556.91672866,9.506e-05,2]
[420269325,1775890958334,-556.91672866,9.506e-05,2]
[420269326,1775890958397,-556.91672866,9.506e-05,2]
[420269327,1775890958470,-556.91672866,9.506e-05,2]
[420269328,1775890958520,-577.76330854,9.506e-05,2]
[420269329,1775890958566,-127.01025082,9.506e-05,2]
[420269330,1775890958760,-450.75305772,9.506e-05,2]
[420269331,1775890959193,-577.76330854,9.506e-05,2]
[420269332,1775890959240,-577.76330854,9.506e-05,2]
[420269333,1775890959303,-577.76330854,9.506e-05,2]
[420269334,1775890959365,-577.76330854,9.506e-05,2]
[420269335,1775890959425,-577.76330854,9.506e-05,2]
[420269336,1775890959513,-577.76330854,9.506e-05,2]
[420269337,1775890959582,-577.76330854,9.506e-05,2]
[420269338,1775890959639,-432.05425646,9.506e-05,2]
[420269339,1775890960977,150.0,9.5e-05,2]
[420269340,1775890961039,-145.70905208,9.506e-05,2]
[420269341,1775890961080,-577.76330854,9.506e-05,2]
[420269342,1775890961123,-577.76330854,9.506e-05,2]
[420269343,1775890961170,-577.76330854,9.506e-05,2]
[420269344,1775890961218,-577.76330854,9.506e-05,2]
[420269345,1775890961265,-577.76330854,9.506e-05,2]
[420269346,1775890961703,-577.76330854,9.506e-05,2]
[420269347,1775890961740,-577.76330854,9.506e-05,2]
[420269348,1775890961786,-577.76330854,9.506e-05,2]
[420269349,1775890961929,-577.76330854,9.506e-05,2]
[420269350,1775890962013,-577.76330854,9.506e-05,2]
[420269351,1775890962087,-577.76330854,9.506e-05,2]
[420269352,1775890962135,-600.90711506,9.506e-05,2]
[420269353,1775890962183,-600.90711506,9.506e-05,2]
[420269354,1775890962221,-600.90711506,9.506e-05,2]
[420269355,1775890962255,-600.90711506,9.506e-05,2]
[420269356,1775890962288,-600.90711506,9.506e-05,2]
[420269357,1775890962481,-600.90711506,9.506e-05,2]
[420269358,1775890962516,-600.90711506,9.506e-05,2]
[420269359,1775890962553,-600.90711506,9.506e-05,2]
[420269360,1775890962592,-600.90711506,9.506e-05,2]
[420269361,1775890962635,-600.90711506,9.506e-05,2]
[420269362,1775890962672,-600.90711506,9.506e-05,2]
[420269363,1775890962707,-600.90711506,9.506e-05,2]
[420269364,1775890962743,-600.90711506,9.506e-05,2]
[420269365,1775890965191,-600.90711506,9.506e-05,2]
[420269366,1775890965240,-600.90711506,9.506e-05,2]
[420269367,1775890965296,-600.90711506,9.506e-05,2]
[420269368,1775890965341,-600.90711506,9.506e-05,2]
[420269369,1775890965392,-600.90711506,9.506e-05,2]
[420269370,1775890965439,-600.90711506,9.506e-05,2]
[420269371,1775890965486,-600.90711506,9.506e-05,2]
[420269372,1775890965551,-600.90711506,9.506e-05,2]
[420269373,1775890968485,-600.90711506,9.506e-05,2]
[420269374,1775890968543,-600.90711506,9.506e-05,2]
[420269375,1775890968614,-716.91986089,9.506e-05,2]
[420269376,1775890968659,-716.91986089,9.506e-05,2]
[420269377,1775890968707,-716.91986089,9.506e-05,2]
[420269378,1775890968750,-716.91986089,9.506e-05,2]
[420269379,1775890968790,-716.91986089,9.506e-05,2]
[420269380,1775890968887,-716.91986089,9.506e-05,2]
[420269381,1775890968932,-716.91986089,9.506e-05,2]
[420269382,1775890968976,-716.91986089,9.506e-05,2]
[420269383,1775890992474,1734.87730239,9.506e-05,2]
[420269384,1775890992554,1734.87730239,9.506e-05,2]
[420269385,1775890992599,1734.87730239,9.506e-05,2]
[420269386,1775890993113,1734.87730239,9.506e-05,2]
[420269387,1775890993182,1734.87730239,9.506e-05,2]
[420269388,1775890993236,1325.62348805,9.506e-05,2]
[420269389,1775890993271,409.25381434,9.506e-05,2]
[420269390,1775890993331,1734.87730239,9.506e-05,2]
[420269391,1775890993385,1734.87730239,9.506e-05,2]
[420269392,1775890993438,1734.87730239,9.506e-05,2]
[420269393,1775890993486,1734.87730239,9.506e-05,2]
[420269394,1775890993537,1734.87730239,9.506e-05,2]
[420269395,1775890993580,916.36967371,9.506e-05,2]
[420269396,1775890993610,818.50762868,9.506e-05,2]
[420269397,1775890993651,1734.87730239,9.506e-05,2]
[420269398,1775890993691,1734.87730239,9.506e-05,2]
[420269399,1775890993751,1734.87730239,9.506e-05,2]
[420269400,1775891026920,150.0,9.5e-05,2]
[420269401,1775891027880,200.0,9.5e-05,2]
[420269402,1775891046784,790.0,9.5e-05,3]
[420269406,1775891100646,150.0,9.5e-05,2]
[420269407,1775891106119,157.0,9.5e-05,3]
[420269408,1775891108987,750.0,9.5e-05,3]
[420269409,1775891121179,154.0,9.5e-05,3]
[420269412,1775891160486,-721.6,9.506e-05,2]
[420269413,1775891160522,-150.0,9.506e-05,2]
[420269414,1775891160555,-500.0,9.506e-05,2]
[420269415,1775891160589,-578.20924308,9.506e-05,2]
[420269416,1775891160621,-250.0,9.507e-05,2]
[420269417,1775891161089,-1000.0,9.507e-05,2]
[420269418,1775891163467,-150.0,9.506e-05,2]
[420269419,1775891164449,150.0,9.5e-05,2]
[420269420,1775891165829,500.0,9.506e-05,2]
[420269421,1775891165950,407.27254198,9.506e-05,2]
[420269422,1775891166591,500.0,9.506e-05,2]
[420269423,1775891166653,500.0,9.506e-05,2]
[420269424,1775891171009,-2415.80530484,9.507e-05,2]
[420269425,1775891172368,-5000.01,9.507e-05,2]
[420269426,1775891172493,-5000.01,9.507e-05,2]
[420269427,1775891172769,-5000.01,9.507e-05,2]
[420269428,1775891175539,-5000.01,9.507e-05,2]
[420269429,1775891175725,-5000.01,9.507e-05,2]
[420269430,1775891175875,-5000.01,9.507e-05,2]
[420269431,1775891178606,-5000.01,9.507e-05,2]
[420269432,1775891178672,500.0,9.506e-05,2]
[420269433,1775891178737,500.0,9.506e-05,2]
[420269434,1775891178803,500.0,9.506e-05,2]
[420269435,1775891178876,500.0,9.506e-05,2]
[420269436,1775891178934,500.0,9.506e-05,2]
[420269437,1775891180413,500.0,9.506e-05,2]
[420269438,1775891180554,500.0,9.506e-05,2]
[420269439,1775891180637,-5000.01,9.507e-05,2]
[420269440,1775891180745,500.0,9.506e-05,2]
[420269441,1775891180805,500.0,9.506e-05,2]
[420269442,1775891180851,500.0,9.506e-05,2]
[420269443,1775891180897,500.0,9.506e-05,2]
[420269444,1775891180947,500.0,9.506e-05,2]
[420269445,1775891180993,500.0,9.506e-05,2]
[420269446,1775891181039,500.0,9.506e-05,2]
[420269447,1775891181534,500.0,9.506e-05,2]
[420269448,1775891181568,442.73745802,9.506e-05,2]
[420269449,1775891181596,57.26254198,9.506e-05,2]
[420269450,1775891181632,500.0,9.506e-05,2]
[420269451,1775891181671,500.0,9.506e-05,2]
[420269452,1775891181710,500.0,9.506e-05,2]
[420269453,1775891181751,500.0,9.506e-05,2]
[420269454,1775891181827,500.0,9.506e-05,2]
[420269455,1775891181905,500.0,9.506e-05,2]
[420269456,1775891181982,500.0,9.506e-05,2]
[420269457,1775891182076,500.0,9.506e-05,2]
[420269458,1775891182110,-5000.01,9.507e-05,2]
[420269459,1775891182256,500.0,9.506e-05,2]
[420269460,1775891182700,-5000.01,9.507e-05,2]
[420269461,1775891182874,-5000.01,9.507e-05,2]
[420269462,1775891182906,-5000.01,9.507e-05,2]
[420269463,1775891187558,-5000.01,9.507e-05,2]
[420269464,1775891189650,500.0,9.506e-05,2]
[420269465,1775891193818,-5000.01,9.507e-05,2]
[420269466,1775891196106,500.0,9.506e-05,2]
[420269467,1775891196160,500.0,9.506e-05,2]
[420269468,1775891196240,500.0,9.506e-05,2]
[420269469,1775891196288,500.0,9.506e-05,2]
[420269470,1775891196353,500.0,9.506e-05,2]
[420269471,1775891196452,500.0,9.506e-05,2]
[420269472,1775891196560,500.0,9.506e-05,2]
[420269473,1775891196670,500.0,9.506e-05,2]
[420269474,1775891196775,500.0,9.506e-05,2]
[420269475,1775891196822,500.0,9.506e-05,2]
[420269476,1775891196893,500.0,9.506e-05,2]
[420269477,1775891196989,500.0,9.506e-05,2]
[420269478,1775891197047,500.0,9.506e-05,2]
[420269479,1775891197106,500.0,9.506e-05,2]
[420269480,1775891197148,500.0,9.506e-05,2]
[420269481,1775891197194,500.0,9.506e-05,2]
[420269482,1775891197283,544.25000235,9.506e-05,2]
[420269483,1775891197331,500.0,9.506e-05,2]
[420269484,1775891209800,159.65398151,9.506e-05,2]